bitfinex/quotes_ETHUSD_20220308
["timestamp","ask_amount","ask_price","bid_price","bid_amount"]
[1646752536776,3.19079671,2571.0,2570.9,13.9578613]
[1646752537025,3.19079671,2571.0,2570.9,14.9578613]
[1646752537223,0.97236,2571.5,2571.2,11.9]
[1646752537424,3.88955,2572.7,2571.2,11.9]
[1646752537425,1.1281,2572.9,2571.4,14.9]
[1646752537623,2.8315,2573.2,2572.5,1.69543696]
[1646752537624,6.3315,2573.2,2572.5,1.69543696]
[1646752537823,6.3315,2573.2,2572.4,1.2077]
[1646752537824,3.8883,2573.1,2572.4,1.2077]
[1646752538026,3.8883,2573.1,2572.4,1.6757]
[1646752538228,3.8883,2573.1,2572.6,1.21140056]
[1646752538628,0.97192,2573.0,2572.7,0.468]
[1646752538828,0.13819996,2573.2,2572.7,0.468]
[1646752539028,0.9718,2573.0,2572.7,12.368]
[1646752539227,1.94359,2573.1,2572.7,13.368]
[1646752539434,0.9714631,2574.5,2573.8,1.08032764]
[1646752539631,1.98478738,2574.8,2574.1,3.0]
[1646752539632,0.04035806,2574.8,2574.1,3.0]
[1646752539835,0.00150312,2575.0,2574.2,15.32236891]
[1646752540034,0.00854016,2575.5,2574.5,11.9]
[1646752540232,0.00854016,2575.5,2574.8,3.0]
[1646752540431,0.00854016,2575.5,2575.0,11.9]
[1646752540432,4.016e-05,2575.5,2575.0,11.9]
[1646752540630,4.016e-05,2575.5,2575.3,11.9]
[1646752540897,4.016e-05,2575.5,2575.4,2.59748457]
[1646752541098,4.016e-05,2575.5,2575.4,1.59748457]
[1646752541297,0.02173846,2575.5,2575.4,2.59748457]
[1646752541495,0.02173846,2575.5,2575.4,1.59748457]
[1646752541700,1.878e-05,2575.5,2575.4,3.56811457]
[1646752541895,1.878e-05,2575.5,2575.4,2.56811457]
[1646752542098,1.878e-05,2575.5,2575.4,3.56811457]
[1646752542296,1.878e-05,2575.5,2575.4,2.43863]
[1646752542696,1.878e-05,2575.5,2575.4,1.43863]
[1646752543297,1.878e-05,2575.5,2575.4,2.51519114]
[1646752543695,1.878e-05,2575.5,2575.4,3.51519114]
[1646752544196,0.005943,2575.6,2575.5,11.9]
[1646752544197,4.3e-05,2575.6,2575.5,11.9]
[1646752544396,4.3e-05,2575.6,2575.5,12.368]
[1646752544630,0.01742292,2575.8,2575.7,13.8408]
[1646752544827,0.01742292,2575.8,2575.7,3.4088]
[1646752545626,0.01742292,2575.8,2575.7,2.4088]
[1646752546427,0.01742292,2575.8,2575.7,0.468]
[1646752546828,2.292e-05,2575.8,2575.7,0.468]
[1646752549374,2.292e-05,2575.8,2575.7,1.43875]
[1646752550374,2.292e-05,2575.8,2575.7,1.73875]
[1646752551176,2.292e-05,2575.8,2575.7,0.768]
[1646752552032,2.292e-05,2575.8,2575.7,0.3]
[1646752552220,2.292e-05,2575.8,2575.6,2.270735]
[1646752552420,2.292e-05,2575.8,2575.6,1.738735]
[1646752552421,0.01097452,2575.8,2575.6,1.738735]
[1646752552824,0.01097452,2575.8,2575.7,1.02747218]
[1646752553225,0.01620029,2575.8,2575.7,1.02747218]
[1646752553928,1.29072496,2576.0,2575.8,6.01053418]
[1646752554127,0.99072496,2576.0,2575.9,0.468]
[1646752555231,1.29072496,2576.0,2575.9,0.468]
[1646752555429,0.99072496,2576.0,2575.9,0.468]
[1646752555628,1.29072496,2576.0,2575.9,0.468]
[1646752556267,1.29072496,2576.0,2575.8,0.03999418]
[1646752556268,0.40863496,2576.0,2575.8,0.03999418]
[1646752556673,0.40863496,2576.0,2575.6,0.970735]
[1646752557073,0.99070496,2576.0,2575.6,1.9415303]
[1646752557272,1.29070496,2576.0,2575.8,1.17544033]
[1646752557472,2.26140397,2576.1,2575.7,5.0]
[1646752557473,1.94737074,2576.1,2575.7,5.0]
[1646752557674,1.94737074,2576.1,2575.6,1.9415303]
[1646752557875,1.94737074,2576.1,2575.7,0.468]
[1646752558073,0.00513594,2575.9,2575.7,0.468]
[1646752558274,0.00513594,2575.9,2575.7,0.768]
[1646752558873,0.97077,2576.0,2575.7,0.768]
[1646752559073,0.00513594,2575.9,2575.8,0.97071]
[1646752559532,0.00513594,2575.9,2575.8,1.43871]
[1646752559725,0.00513594,2575.9,2575.7,0.3]
[1646752559924,0.00513594,2575.9,2575.8,0.468]
[1646752560326,1.66472803,2576.0,2575.4,0.00525913]
[1646752560530,1.66472803,2576.0,2575.4,0.47325913]
[1646752560729,1.27602803,2576.0,2575.4,0.47325913]
[1646752560926,1.27602803,2576.0,2575.6,2.9124016]
[1646752561128,1.27602803,2576.0,2575.7,0.468]
[1646752561332,1.27077,2576.0,2575.7,0.468]
[1646752561528,1.27077,2576.0,2575.6,1.9416063]
[1646752561726,1.27077,2576.0,2575.6,2.4096063]
[1646752561727,0.39395803,2575.9,2575.6,2.4096063]
[1646752561926,0.39395803,2575.9,2575.6,0.468]
[1646752561927,1.39927257,2575.7,2575.6,0.468]
[1646752562126,3.21294,2575.8,2575.4,0.97624832]
[1646752562326,0.97091,2575.7,2575.4,0.97624832]
[1646752562527,0.97091,2575.7,2575.4,0.9709893]
[1646752562726,0.97091,2575.7,2575.4,0.97443126]
[1646752562927,0.97091,2575.7,2575.4,3.38402126]
[1646752563368,0.97091,2575.7,2575.5,0.3]
[1646752563568,0.03823789,2575.7,2575.5,1.27079]
[1646752563769,0.03823789,2575.7,2575.5,1.73879]
[1646752563969,0.03823789,2575.7,2575.5,5.23879]
[1646752564172,1.55697725,2576.1,2575.7,5.0]
[1646752564173,0.00484352,2576.1,2575.7,5.0]
[1646752564374,0.05143684,2576.7,2575.9,5.0]
[1646752564575,0.05923216,2577.5,2576.3,5.0]
[1646752564576,0.01937408,2577.0,2576.3,5.0]
[1646752564772,0.0432126,2577.0,2576.9,0.90490449]
[1646752564973,0.0432126,2577.0,2576.9,0.9763]
[1646752565171,0.0432126,2577.0,2576.9,1.9464015]
[1646752565172,0.01676076,2577.0,2576.9,1.9464015]
[1646752565373,2.08030508,2577.2,2577.0,5.0]
[1646752565374,0.01714324,2577.2,2577.0,5.0]
[1646752565578,0.07465172,2578.0,2577.2,16.9]
[1646752565779,0.0177214,2577.9,2577.4,0.98275998]
[1646752565977,1.93963,2577.9,2577.8,1.16854446]
[1646752566175,0.12263216,2578.1,2577.8,6.10639156]
[1646752566373,0.12263216,2578.1,2577.8,3.90639156]
[1646752566573,0.12175752,2578.4,2577.9,15.4]
[1646752566775,0.09549956,2578.4,2578.1,4.0]
[1646752567026,0.09549956,2578.4,2578.3,1.16485097]
[1646752567027,6.004e-05,2578.4,2578.3,1.16485097]
[1646752567226,0.0966733,2578.6,2578.5,0.27749571]
[1646752567426,0.11719426,2578.6,2578.5,0.74549571]
[1646752567925,0.11719426,2578.6,2578.5,1.04549571]
[1646752569131,0.11719426,2578.6,2578.5,0.27749571]
[1646752569530,1.42938391,2578.6,2578.5,0.27749571]
[1646752569827,1.42938391,2578.6,2577.8,0.468]
[1646752570028,0.9699,2578.5,2577.8,0.468]
[1646752570529,0.99042096,2578.5,2577.8,1.4379925]
[1646752570774,0.99042096,2578.5,2577.9,13.7744987]
[1646752570981,3.0063733,2578.6,2578.1,11.9]
[1646752570982,0.0966733,2578.6,2578.1,11.9]
[1646752571178,0.06528278,2579.0,2578.4,5.0]
[1646752571375,0.0211345,2579.1,2578.9,11.9]
[1646752571376,0.01490836,2579.1,2578.9,11.9]
[1646752571576,0.04642248,2579.5,2579.1,11.9]
[1646752571781,0.08090334,2579.8,2579.2,13.57955129]
[1646752571782,0.02431794,2579.8,2579.2,13.57955129]
[1646752571977,3.87687,2580.9,2579.2,13.57955129]
[1646752571978,1.93792,2580.5,2579.7,11.9]
[1646752572178,1.93792,2580.5,2579.8,0.468]
[1646752572575,1.93792,2580.5,2579.9,0.9689293]
[1646752572777,0.3887,2580.4,2579.9,0.9689293]
[1646752572979,1.88842,2580.3,2579.9,1.9380793]
[1646752573180,1.88842,2580.3,2579.9,2.7060793]
[1646752573380,1.88842,2580.3,2580.0,4.45197302]
[1646752573585,1.88842,2580.3,2580.1,0.468]
[1646752573586,1.89040006,2580.3,2580.1,0.468]
[1646752573783,0.00198006,2580.3,2580.1,0.768]
[1646752574384,1.93806,2580.6,2580.1,0.768]
[1646752574624,0.00198006,2580.3,2580.1,3.6752109]
[1646752574825,8.006e-05,2580.3,2580.2,3.5]
[1646752575026,0.01041768,2580.6,2580.3,5.0]
[1646752575228,1.768e-05,2580.6,2580.4,0.768]
[1646752575428,0.006843,2580.8,2580.5,5.0]
[1646752575625,0.006843,2580.8,2580.5,6.0]
[1646752575825,0.006843,2580.8,2580.6,1.6641665]
[1646752576028,0.006843,2580.8,2580.6,0.768]
[1646752576626,0.006843,2580.8,2580.5,1.0]
[1646752576827,0.006843,2580.8,2580.4,0.9687126]
[1646752577235,0.006843,2580.8,2580.4,1.4367126]
[1646752577629,0.013686,2580.9,2580.4,1.4367126]
[1646752578283,0.013686,2580.9,2580.4,1.7367126]
[1646752578284,0.982586,2580.9,2580.4,1.7367126]
[1646752578471,0.982586,2580.9,2580.4,0.768]
[1646752578472,0.00195398,2580.8,2580.4,0.768]
[1646752578672,1.93829,2580.6,2580.0,0.468]
[1646752578875,1.93829,2580.6,2579.3,1.20342295]
[1646752579075,1.93829,2580.6,2579.4,0.468]
[1646752579076,0.00149871,2580.5,2579.4,0.468]
[1646752579277,1.93978871,2580.6,2579.4,0.468]
[1646752579473,1.93978871,2580.6,2579.5,0.96923]
[1646752579676,1.12115959,2580.0,2579.6,0.468]
[1646752580278,2.23847,2580.1,2579.6,0.768]
[1646752580678,0.96924,2580.0,2579.6,0.768]
[1646752581081,1.26924,2580.0,2579.6,0.468]
[1646752581283,1.26924,2580.0,2578.8,3.8764483]
[1646752581591,1.26924,2580.0,2578.4,0.57169711]
[1646752581592,3.0,2579.9,2578.4,0.96963]
[1646752581783,4.77073871,2580.0,2578.4,0.468]
[1646752581784,0.96969,2579.4,2578.4,0.468]
[1646752582027,0.96969,2579.4,2577.8,0.20769498]
[1646752582028,0.8901981,2578.2,2578.0,0.468]
[1646752582225,0.3887,2579.3,2578.2,1.33470867]
[1646752582226,3.0,2579.3,2578.2,1.33470867]
[1646752582424,2.90963,2579.0,2578.1,0.0034877]
[1646752582624,3.20963,2579.0,2578.1,0.0034877]
[1646752582825,3.20963,2579.0,2577.8,2.4075951]
[1646752583226,3.20963,2579.0,2577.3,0.57619591]
[1646752583227,0.3,2578.0,2577.3,0.97005]
[1646752583426,0.3,2578.0,2577.4,0.468]
[1646752583626,0.39019871,2578.9,2577.4,0.468]
[1646752583627,2.91016,2578.5,2577.4,1.4380214]
[1646752583829,2.91016,2578.5,2577.5,5.08607539]
[1646752584032,0.3,2578.6,2577.6,0.468]
[1646752584341,1.1092219,2579.2,2578.5,0.90121005]
[1646752584528,0.96967,2578.9,2578.6,0.468]
[1646752584730,1.26967,2578.9,2578.6,0.468]
[1646752584931,0.96967,2578.9,2578.6,0.468]
[1646752585131,0.96967,2578.9,2578.6,0.768]
[1646752585530,0.96967,2578.9,2578.6,0.3]
[1646752585531,1.35837,2578.9,2578.6,0.3]
[1646752585782,1.51346292,2578.8,2578.2,0.468]
[1646752585970,1.51346292,2578.8,2578.1,0.468]
[1646752586171,1.12476292,2578.8,2578.2,0.468]
[1646752586573,1.26967,2578.9,2578.2,0.468]
[1646752586772,0.96967,2578.9,2578.2,0.768]
[1646752586976,0.96971,2578.7,2578.2,0.768]
[1646752587171,1.93933,2579.0,2578.3,0.96968]
[1646752587372,1.93933,2579.0,2578.4,3.968]
[1646752587572,1.93933,2579.0,2578.4,4.16356751]
[1646752587775,0.00149871,2579.4,2578.8,2.10535556]
[1646752587974,0.00149871,2579.9,2578.9,3.968]
[1646752588173,0.00149871,2580.1,2578.9,3.968]
[1646752588372,0.00149871,2580.3,2578.9,5.46356751]
[1646752588573,0.00149871,2580.3,2579.0,1.93863]
[1646752588773,0.00149871,2580.3,2579.5,1.13125708]
[1646752588975,0.00149871,2580.6,2579.6,1.4371969]
[1646752589277,0.91915,2580.4,2579.6,0.468]
[1646752589530,0.91915,2580.4,2579.8,0.96913]
[1646752589731,0.91915,2580.4,2579.9,3.968]
[1646752590031,0.91915,2580.4,2580.3,1.15293559]
[1646752590231,0.91915,2580.4,2580.3,1.92093559]
[1646752590430,0.91915,2580.4,2580.3,0.768]
[1646752591431,1.93038452,2580.4,2580.3,0.768]
[1646752591633,0.91915,2580.4,2580.3,0.768]
[1646752591832,0.96892,2580.6,2580.3,0.768]
[1646752592633,0.9029711,2580.4,2580.3,0.768]
[1646752593031,0.96892,2580.6,2580.3,0.768]
[1646752593032,0.3,2580.5,2580.3,0.768]
[1646752593281,0.96892,2580.6,2580.3,0.768]
[1646752595173,0.98333158,2580.5,2580.3,0.768]
[1646752595373,1.37203158,2580.5,2580.3,0.468]
[1646752595574,1.37203158,2580.5,2580.0,1.0]
[1646752595575,1.37203158,2580.5,2579.9,1.0]
[1646752595773,0.98333158,2580.5,2579.3,1.0]
[1646752596073,0.98333158,2580.5,2579.4,0.468]
[1646752596074,1.37353029,2580.5,2579.4,0.468]
[1646752596273,1.12938046,2579.7,2579.5,0.468]
[1646752596473,3.06798046,2579.7,2579.5,0.468]
[1646752596873,3.06798046,2579.7,2579.1,0.468]
[1646752596874,3.45668046,2579.7,2579.1,0.468]
[1646752597721,1.76530204,2579.7,2579.1,0.468]
[1646752598323,1.37660204,2579.7,2579.1,0.768]
[1646752599427,0.3887,2579.6,2579.1,0.768]
[1646752599627,1.16470526,2579.3,2579.1,0.768]
[1646752599829,0.96954,2579.3,2579.1,0.768]
[1646752600426,0.96954,2579.3,2579.1,0.468]
[1646752600630,0.96954,2579.3,2578.8,0.8657]
[1646752601498,2.62778,2579.4,2578.8,0.8657]
[1646752601499,1.89257884,2579.1,2578.8,0.8657]
[1646752601696,2.19257884,2579.1,2578.8,0.8657]
[1646752602696,1.26966,2579.1,2578.8,0.8657]
[1646752602902,1.26966,2579.1,2578.8,1.1657]
[1646752603105,1.65836,2579.1,2578.8,0.8657]
[1646752603702,2.62813,2579.1,2578.8,0.8657]
[1646752603904,1.42384448,2579.0,2578.8,0.8657]
[1646752604101,0.3887,2578.7,2578.1,0.00509307]
[1646752604303,3.8887,2578.6,2578.1,0.00509307]
[1646752604526,3.8887,2578.6,2577.4,0.468]
[1646752604527,0.3887,2578.6,2577.4,0.468]
[1646752604729,0.39019871,2578.6,2577.5,1.58623622]
[1646752604928,0.3887,2578.5,2578.1,0.00509304]
[1646752605134,1.35891,2578.2,2577.4,0.468]
[1646752605429,0.3,2577.8,2577.5,1.58634377]
[1646752605629,0.3887,2578.3,2577.5,1.58634377]
[1646752605930,3.5,2578.6,2577.6,0.468]
[1646752605931,0.30149871,2578.6,2577.6,0.468]
[1646752606127,0.3,2578.6,2577.7,1.58634377]
[1646752606329,0.96992,2578.1,2577.7,1.58634377]
[1646752606730,1.26992,2578.1,2577.8,0.468]
[1646752606932,1.26992,2578.1,2577.9,1.58634377]
[1646752607132,1.26992,2578.1,2577.8,0.3]
[1646752607530,1.26992,2578.1,2577.6,0.768]
[1646752607732,2.34587647,2578.1,2577.7,1.58625415]
[1646752609778,2.34587647,2578.1,2577.8,0.00511405]
[1646752609980,2.34587647,2578.1,2577.9,1.58625415]
[1646752610180,1.26992,2578.1,2577.9,1.58625415]
[1646752610381,1.26992,2578.1,2577.9,1.88625415]
[1646752610580,1.26992,2578.1,2578.0,1.58625415]
[1646752610779,1.26992,2578.1,2578.0,1.88625415]
[1646752613325,1.26992,2578.1,2578.0,1.58625415]
[1646752613526,1.26992,2578.1,2577.9,0.00523442]
[1646752613527,5.15862,2578.1,2577.9,0.00523442]
[1646752613725,1.65862,2578.1,2577.9,0.00523442]
[1646752613923,1.65862,2578.1,2577.1,0.71085048]
[1646752613924,2.8887,2578.0,2577.1,0.71085048]
[1646752614126,2.8887,2578.0,2576.5,1.156]
[1646752614127,3.3887,2577.7,2577.2,1.58665291]
[1646752614426,3.3887,2577.7,2577.3,1.58665291]
[1646752614427,1.35638405,2577.4,2577.3,1.58665291]
[1646752614631,1.35638405,2577.4,2576.4,1.57603992]
[1646752614632,0.96768405,2577.4,2576.4,1.57603992]
[1646752614829,0.96768405,2577.4,2576.7,0.9703796]
[1646752615030,0.96768405,2577.4,2576.8,1.5868472]
[1646752615230,0.97037,2577.3,2576.8,2.53408247]
[1646752615432,0.97037,2577.3,2576.8,0.3]
[1646752615631,1.27037,2577.3,2576.8,0.3]
[1646752615875,1.27037,2577.3,2576.7,0.3]
[1646752616076,1.27037,2577.3,2576.5,1.94065]
[1646752616278,1.27037,2577.3,2576.6,1.58698851]
[1646752616476,1.27037,2577.3,2576.3,0.468]
[1646752616678,0.89886721,2577.0,2576.4,1.58700718]
[1646752616877,0.97058,2576.9,2576.4,1.58700718]
[1646752617275,0.97058,2576.9,2576.4,1.88700718]
[1646752617276,1.27058,2576.9,2576.4,1.88700718]
[1646752617478,1.27058,2576.9,2576.5,1.58700718]
[1646752617677,2.4179498,2577.0,2576.5,1.58700718]
[1646752617879,2.4179498,2577.0,2576.6,1.58700718]
[1646752618083,1.51908259,2577.0,2576.5,0.30541704]
[1646752618279,1.51908259,2577.0,2576.5,0.00541704]
[1646752618483,0.97058,2576.9,2576.5,0.00541704]
[1646752618884,0.97058,2576.9,2576.6,1.58671125]
[1646752619184,1.9407,2577.4,2576.8,1.01245965]
[1646752619382,1.9407,2577.4,2576.6,2.05471125]
[1646752619383,1.9407,2577.4,2576.6,0.47147773]
[1646752619628,1.9407,2577.4,2576.7,0.3]
[1646752619832,1.9407,2577.4,2576.7,0.468]
[1646752620031,1.9407,2577.4,2576.6,0.30347773]
[1646752620032,0.3887,2577.2,2576.6,0.30347773]
[1646752620233,2.24082,2577.3,2576.6,0.00347773]
[1646752620534,2.24082,2577.3,2576.2,1.9408717]
[1646752620535,2.14687284,2577.0,2576.9,0.00347739]
[1646752620934,2.44687284,2577.0,2576.9,0.00347739]
[1646752621334,2.83557284,2577.0,2576.3,1.94081]
[1646752621532,2.53557284,2577.0,2576.3,2.24081]
[1646752621733,2.53557284,2577.0,2576.8,0.00347746]
[1646752621734,2.14687284,2577.0,2576.8,0.00347746]
[1646752622433,2.14687284,2577.0,2576.3,2.24081]
[1646752622834,2.14687284,2577.0,2576.8,0.00541841]
[1646752623033,2.44687284,2577.0,2576.8,0.00541841]
[1646752623471,1.27043,2577.0,2576.8,0.00541841]
[1646752623672,0.97043,2577.0,2576.5,0.97042]
[1646752623873,0.97043,2577.0,2576.5,0.3]
[1646752624072,0.97043,2577.0,2576.8,0.00541841]
[1646752624874,0.97043,2577.0,2576.9,1.38445945]
[1646752625075,0.97043,2577.0,2576.7,0.468]
[1646752625277,0.97043,2577.0,2576.8,0.00541841]
[1646752626175,0.97043,2577.0,2576.5,0.3]
[1646752626176,1.12670394,2576.9,2576.5,0.3]
[1646752626377,3.06775394,2576.9,2576.8,0.00541841]
[1646752626576,3.36775394,2576.9,2576.8,0.00541841]
[1646752626876,3.36775394,2576.9,2576.3,0.768]
[1646752627519,2.24105,2576.9,2576.3,0.768]
[1646752627722,1.94105,2576.9,2576.4,1.58691735]
[1646752627923,1.94105,2576.9,2576.5,4.93837]
[1646752628123,1.94038,2577.3,2576.6,2.16991735]
[1646752628321,1.94038,2577.3,2576.8,0.583]
[1646752628529,1.94038,2577.3,2577.0,1.76417736]
[1646752628728,1.94038,2577.3,2577.1,1.351]
[1646752628928,1.94038,2577.3,2577.1,0.583]
[1646752629827,1.94038,2577.3,2576.5,0.3]
[1646752629828,2.24038,2577.3,2576.5,0.3]
[1646752630028,1.19034102,2576.6,2576.3,0.468]
[1646752630229,2.16094102,2576.6,2576.3,0.468]
[1646752630533,2.16094102,2576.6,2575.7,0.59129101]
[1646752630790,2.16094102,2576.6,2575.8,1.58709905]
[1646752630978,5.54964102,2576.6,2575.5,0.468]
[1646752631180,5.54964102,2576.6,2575.6,1.587264]
[1646752631181,2.54964102,2576.6,2575.6,1.587264]
[1646752631377,2.54964102,2576.6,2576.3,0.00541901]
[1646752631378,0.95450083,2576.4,2576.3,0.00541901]
[1646752631596,1.35977,2576.2,2574.7,6.69866122]
[1646752631781,0.3887,2575.7,2574.8,1.58764024]
[1646752632178,0.3887,2575.7,2574.4,0.3886]
[1646752632380,0.97139,2575.2,2574.4,0.3886]
[1646752632583,1.3748968,2574.7,2574.1,0.81054536]
[1646752633180,1.3748968,2574.7,2573.7,0.468]
[1646752633380,0.9861968,2574.7,2573.7,0.468]
[1646752633783,0.9861968,2574.7,2573.7,1.39545636]
[1646752633980,0.97155,2574.6,2574.1,1.0895264]
[1646752634181,2.2431,2574.8,2574.6,1.42022788]
[1646752634384,2.2431,2574.8,2574.2,0.468]
[1646752634385,1.9431,2574.8,2574.2,0.468]
[1646752634828,1.9431,2574.8,2574.2,0.768]
[1646752635029,1.9431,2574.8,2574.2,0.77147429]
[1646752635728,3.05403975,2574.8,2574.2,0.77147429]
[1646752635929,1.9431,2574.8,2574.2,0.77147429]
[1646752636130,1.9431,2574.8,2574.4,0.0054248]
[1646752636529,1.9431,2574.8,2574.4,0.4734248]
[1646752636729,1.9431,2574.8,2574.4,0.7734248]
[1646752637429,1.9431,2574.8,2574.5,0.00542466]
[1646752637631,0.24934756,2574.8,2574.5,0.47342466]
[1646752638034,0.97142,2575.0,2574.5,4.27342466]
[1646752638284,0.3882,2575.9,2574.5,4.27342466]
[1646752638285,0.3882,2575.9,2574.7,0.3887]
[1646752638470,0.3882,2575.9,2574.6,11.9]
[1646752638471,0.00149871,2575.8,2575.7,0.88857428]
[1646752638673,0.91882853,2576.4,2575.7,0.468]
[1646752638876,0.91882853,2576.4,2575.7,0.768]
[1646752638877,0.97069,2575.8,2575.7,0.768]
[1646752639073,0.97069,2575.8,2575.7,0.29483737]
[1646752639272,0.97069,2575.8,2575.0,1.0]
[1646752639471,0.97069,2575.8,2575.0,1.468]
[1646752639675,0.97069,2575.8,2575.2,13.10574539]
[1646752639876,0.97069,2575.8,2575.2,14.10574539]
[1646752640077,0.97069,2575.8,2575.4,12.8708089]
[1646752640278,0.97069,2575.8,2575.5,0.468]
[1646752641280,2.11214304,2575.8,2575.5,0.468]
[1646752641481,2.41214304,2575.8,2575.4,0.3]
[1646752641676,2.41214304,2575.8,2575.0,0.468]
[1646752641877,2.41214304,2575.8,2575.0,0.768]
[1646752642627,2.41214304,2575.8,2575.2,13.09271303]
[1646752642628,0.97069,2575.8,2575.2,13.09271303]
[1646752642823,0.97069,2575.8,2575.2,2.96071303]
[1646752643224,0.97069,2575.8,2575.3,0.005421]
[1646752643426,2.08107867,2576.1,2575.4,12.368]
[1646752643427,1.94138,2576.1,2575.4,12.368]
[1646752643628,2.91217,2576.6,2575.5,3.5]
[1646752644032,2.91217,2576.6,2575.6,0.468]
[1646752644428,3.88292,2576.6,2575.6,0.77331895]
[1646752644633,0.97065,2576.0,2575.6,0.77331895]
[1646752645034,1.27065,2576.0,2575.6,0.77331895]
[1646752645434,1.27065,2576.0,2575.6,0.768]
[1646752645635,1.27065,2576.0,2575.7,0.00531888]
[1646752645876,1.06152866,2575.8,2575.7,0.00531888]
[1646752647078,1.06152866,2575.8,2575.6,0.00531895]
[1646752647476,2.24154,2576.0,2575.6,0.00531895]
[1646752647677,1.27065,2576.0,2575.6,0.47331895]
[1646752647879,0.97065,2576.0,2575.6,0.47331895]
[1646752648078,0.97065,2576.0,2575.6,0.77825979]
[1646752648279,1.94145,2576.0,2575.6,0.77294084]
[1646752648980,1.94109,2576.4,2575.9,0.89017648]
[1646752649184,1.94109,2576.4,2576.0,0.468]
[1646752649378,1.94109,2576.4,2576.1,0.468]
[1646752649379,2.91177,2576.4,2576.1,0.468]
[1646752649629,2.91177,2576.4,2576.0,0.468]
[1646752650228,1.21067234,2576.1,2576.0,0.768]
[1646752651532,0.3,2576.2,2576.0,0.768]
[1646752651731,3.3012,2576.3,2576.0,0.768]
[1646752651732,3.6012,2576.3,2576.0,0.768]
[1646752651930,3.2125,2576.3,2576.0,0.768]
[1646752652129,3.2125,2576.3,2576.1,1.58721611]
[1646752652328,3.2125,2576.3,2576.2,0.468]
[1646752652530,3.2125,2576.3,2576.2,2.05521611]
[1646752652729,3.2125,2576.3,2576.2,2.35521611]
[1646752653135,3.2125,2576.3,2576.2,0.768]
[1646752653375,3.2125,2576.3,2576.0,0.00497387]
[1646752653576,3.6012,2576.3,2576.1,1.58743887]
[1646752653780,3.6012,2576.3,2576.1,1.88743887]
[1646752653978,3.2125,2576.3,2576.2,1.58743887]
[1646752654384,1.94109,2576.4,2576.2,2.05543887]
[1646752654581,1.94109,2576.4,2576.3,1.58743887]
[1646752654981,1.94109,2576.4,2576.3,2.05543887]
[1646752655384,1.94109,2576.4,2576.3,2.68743887]
[1646752655581,1.94109,2576.4,2576.3,14.58743887]
[1646752655782,0.01982126,2577.3,2576.3,3.68743887]
[1646752655783,1.94054,2577.0,2576.3,3.68743887]
[1646752655987,1.94054,2577.0,2576.5,0.632]
[1646752656183,2.32924,2577.0,2576.7,0.632]
[1646752656384,2.91153,2576.9,2576.7,0.3]
[1646752656583,2.91153,2576.9,2576.6,0.3]
[1646752656584,4.85289,2576.9,2576.6,0.3]
[1646752656783,4.85289,2576.9,2576.3,0.3]
[1646752656784,0.3887,2576.8,2576.3,0.768]
[1646752657032,1.19446369,2576.7,2576.3,0.768]
[1646752657628,4.65442354,2576.9,2576.3,0.768]
[1646752657829,5.5278016,2576.9,2576.3,0.768]
[1646752658028,1.94126,2576.8,2576.3,0.768]
[1646752658427,1.94126,2576.8,2576.3,1.47885048]
[1646752658629,1.94126,2576.8,2576.3,0.768]
[1646752659431,2.24126,2576.8,2576.3,0.768]
[1646752659934,1.12683579,2576.4,2576.3,0.768]
[1646752660785,2.91201,2576.6,2576.3,0.768]
[1646752661574,3.77897714,2576.6,2576.3,0.768]
[1646752662777,4.16767714,2576.6,2576.3,0.768]
[1646752662986,4.16767714,2576.6,2576.3,0.468]
[1646752663186,0.97062,2576.5,2576.3,0.468]
[1646752663985,0.97062,2576.5,2576.3,0.23279763]
[1646752665032,0.97062,2576.5,2576.2,0.00524743]
[1646752665033,1.35932,2576.5,2576.2,0.00524743]
[1646752665232,3.30101,2576.5,2576.2,0.00524743]
[1646752665633,1.35954,2576.4,2575.7,0.3]
[1646752665934,1.65954,2576.4,2575.7,0.3]
[1646752666133,0.99451909,2575.7,2575.4,0.71085048]
[1646752666332,1.96539909,2575.7,2575.4,0.71085048]
[1646752666732,1.96539909,2575.7,2575.3,0.97083]
[1646752667132,1.94175,2575.7,2575.3,0.97083]
[1646752667336,2.24175,2575.7,2575.3,0.3]
[1646752667637,2.24175,2575.7,2575.0,0.71085048]
[1646752667638,3.3018,2575.6,2575.0,0.71085048]
[1646752667839,3.3018,2575.6,2574.7,1.9199447]
[1646752667840,3.3018,2575.6,2574.9,0.71085048]
[1646752668294,3.3018,2575.6,2574.8,0.71085048]
[1646752668497,3.3018,2575.6,2574.8,1.17885048]
[1646752668699,0.97105,2575.2,2574.9,0.71085048]
[1646752669100,0.97105,2575.3,2574.9,0.71085048]
[1646752669101,1.27105,2575.3,2574.9,0.71085048]
[1646752669300,1.27105,2575.3,2575.0,0.71085048]
[1646752669502,1.27105,2575.3,2575.0,1.01085048]
[1646752669701,0.97079,2575.6,2575.1,13.07885048]
[1646752669906,0.97079,2575.6,2575.4,1.21483589]
[1646752670102,0.97079,2575.6,2575.5,0.468]
[1646752670302,0.97079,2575.6,2575.5,0.768]
[1646752670702,0.97079,2575.6,2575.5,1.47885048]
[1646752671008,0.97079,2575.6,2575.5,13.37885048]
[1646752671206,1.94276697,2576.2,2575.5,16.87885048]
[1646752671404,1.94302697,2576.3,2575.6,0.71085048]
[1646752671603,1.94154,2576.3,2575.7,0.468]
[1646752671803,1.94154,2576.3,2575.7,0.768]
[1646752672032,0.97077,2576.0,2575.7,0.718]
[1646752672230,1.94153,2576.0,2575.7,0.72342039]
[1646752672434,1.94153,2576.0,2575.7,0.47342039]
[1646752672632,2.24153,2576.0,2575.7,0.47342039]
[1646752672833,1.16752821,2575.8,2575.7,0.00542039]
[1646752674035,1.55622821,2575.8,2575.7,0.00542039]
[1646752674238,1.55622821,2575.8,2575.3,0.9]
[1646752674435,1.35979,2575.7,2575.3,0.9]